Cogmind - Beta 13 @@@ ROGUE MODE // 2024.04.15 @ 23:25:35 Player: Exceptionally Mediocre Result: Destroyed by Piercing Trap Performance ------------- Evolutions (0) 0 Regions Visited (2) 400 Robots Destroyed (29) 145 Value Destroyed (826) 826 Prototype IDs (0) 0 Alien Tech Used (0) 0 Bonus (0) 0 TOTAL SCORE: 1371 Bonus ------- None Cogmind --------- Core Integrity 0/250 Matter 116/300 Energy 121/125 System Corruption 0% Temperature Cool (2) Movement Treading (160) Location -10/Subcaves Parts ------- > --- POWER (1) -------- Light Ion Engine > --- PROPULSION (2) --- Improved Treads Improved Treads > --- UTILITY (2) ------ Large Storage Unit Medium Armor Plating > --- WEAPON (2) ------- Makeshift Laser Makeshift Spear > --- INVENTORY (15) --- Subdweller Power Source Makeshift Leg Subdweller Monowheel Subdweller Monowheel Improved Terrain Scanner Hacking Suite Assault Rifle Shotgun Subdweller Machine Gun Subdweller Shrapnel Launcher Subdweller Shrapnel Launcher Ripper Peak State ------------ > --- POWER ------------ Ion Engine > --- PROPULSION ------- Improved Treads Improved Treads > --- UTILITY ---------- Large Storage Unit Medium Armor Plating > --- WEAPON ----------- Makeshift Laser Ripper > --- INVENTORY -------- Light Ion Engine Subdweller Power Source Improved Treads Improved Treads Subdweller Monowheel Subdweller Monowheel Improved Terrain Scanner Medium Armor Plating Medium Armor Plating Hacking Suite Assault Rifle Shotgun Subdweller Machine Gun Subdweller Shrapnel Launcher Makeshift Spear [Rating: 19] Favorites ----------- Power Ion Engine Engine Ion Engine Propulsion Improved Treads Treads Improved Treads Wheel Wheel Utility Large Storage Unit Device Improved Terrain Scanner Storage Large Storage Unit Protection Medium Armor Plating Weapon Makeshift Laser Energy Gun Makeshift Laser Ballistic Gun Shotgun Launcher Subdweller Shrapnel Launcher Slashing Weapon Mining Claw Piercing Weapon Makeshift Spear Build | -11 -10 -10 ------- Run | Yrd Mat Sub Slots Evolved . | . . . Power . | . . . Propulsion . | . . . Utility . | . . . Weapon . | . . . Parts Attached 37 | 8 12 17 Power 4 | 1 1 2 Engine 4 | 1 1 2 Core . | . . . Reactor . | . . . Propulsion 7 | 2 3 2 Treads 4 | . 2 2 Leg . | . . . Wheel 3 | 2 1 . Hover . | . . . Flight . | . . . Utility 7 | 2 2 3 Device 1 | 1 . . Storage 2 | 1 1 . Processor . | . . . Hackware . | . . . Protection 4 | . 1 3 Artifact . | . . . Weapon 19 | 3 6 10 Energy Gun 3 | 1 1 1 Energy Cannon . | . . . Ballistic Gun 9 | 2 3 4 Ballistic Cannon . | . . . Launcher 2 | . . 2 Special Weapon . | . . . Impact Weapon . | . . . Slashing Weapon 3 | . 2 1 Piercing Weapon 2 | . . 2 Special Melee Weapon . | . . . Unidentified Prototypes . | . . . Parts Lost 9 | . 2 7 Power 3 | . 1 2 Propulsion 3 | . 1 2 Utility 2 | . . 2 Weapon 1 | . . 1 Highest Loss Streak 2 | . 2 2 To Critical Strikes . | . . . Average Slot Usage (%) 99 | . 99 100 Engine 13 | . 13 14 Treads 23 | . 13 28 Wheel 4 | . 14 . Device 2 | . 8 . Storage 14 | . 14 14 Protection 11 | . 5 14 Energy Gun 11 | . 11 11 Ballistic Gun 9 | . 15 7 Launcher 4 | . . 6 Piercing Weapon 1 | . . 2 Naked Turns . | . . . Heaviest Build 42 | 14 38 42 Greatest Support 46 | 26 46 46 Greatest Overweight (x) 3 | 3 1 . Average Overweight (x) . | . . . Largest Inventory Capacity 15 | 8 15 15 Average Capacity 14 | 7 14 15 Most Carried 15 | 8 15 15 Average Carried 12 | 4 12 13 Final Capacity 15 | 8 15 15 Final Carried 15 | 8 15 12 Class Distribution -------------------- 100% | Mutant Dominant Class ---------------- Mutant | -10/Materials Mutant | -10/Subcaves Resources | -11 -10 -10 ----------- Run | Yrd Mat Sub Matter Collected 714 | 293 139 282 Remotely . | . . . Salvage Created 965 | 136 450 379 Parts 63 | 12 31 20 Haulers Intercepted 1 | . 1 . Recyclers Shooed . | . . . Parts Field Recycled . | . . . Retrieved Matter . | . . . Parts Self-Destructed 4 | . . 4 Prevented . | . . . Kills | -11 -10 -10 ------- Run | Yrd Mat Sub Combat Hostiles Destroyed 19 | . 8 11 Guns 16 | . 8 8 AOE 3 | . . 3 Classes Destroyed 9 | 3 5 1 Worker 1 | 1 . . Builder 1 | . 1 . Tunneler 4 | 3 1 . Hauler 1 | . 1 . Recycler 1 | 1 . . Operator 1 | . 1 . Watcher 1 | . 1 . Grunt 10 | . 8 2 Subdweller 9 | . . 9 Best Kill Streak 3 | 3 3 3 Combat Bots Only 3 | . 3 3 Max Kills in Single Turn 1 | 1 1 1 Gunslinging . | . . . Exploded 1 | . . 1 Melee . | . . . Uniques/NPCs Destroyed . | . . . Combat | -11 -10 -10 -------- Run | Yrd Mat Sub Hostile Shots Fired 114 | . 44 70 Missed 32 | . 8 24 Damage Taken 1828 | . 468 1360 Core 256 | . 114 142 Absorbed by Shields . | . . . Core Remaining (%) 100 | 100 . . Volleys Fired 101 | 13 43 45 Largest 2 | 2 2 2 Hottest 173 | 70 88 173 Shots Fired 171 | 26 81 64 Gun 161 | 26 81 54 Cannon . | . . . Launcher 10 | . . 10 Special . | . . . Kinetic 99 | 13 47 39 Thermal 72 | 13 34 25 Explosive . | . . . Electromagnetic . | . . . Robot Hit Streak 13 | 5 8 13 Robot Miss Streak 7 | 2 7 3 Penetration Max . | . . . Secondary Targets 1 | . . 1 Max Gunslinging Chain 1 | . . 1 Shots Hit Robots 113 | 17 51 45 Core Hits 61 | 8 25 28 Critical Kills . | . . . Critical Parts Destroyed . | . . . Critical Strikes 8 | 1 3 4 Burn 8 | 1 3 4 Melee Attacks 15 | . 9 6 Impact . | . . . Slashing 11 | . 9 2 Piercing 4 | . . 4 Sneak Attacks 2 | . 2 . Combat Hostiles . | . . . Follow-up Attacks . | . . . Damage Inflicted 2062 | 177 617 1268 Guns 1441 | 177 519 745 Cannons . | . . . Explosions 523 | . . 523 Melee 98 | . 98 . Ramming . | . . . Kinetic 1191 | 79 237 875 Thermal 773 | 98 282 393 Explosive . | . . . Electromagnetic . | . . . Impact . | . . . Slashing 98 | . 98 . Piercing . | . . . Highest Corruption . | . . . Average Corruption . | . . . Corruption Purged . | . . . Corruption Blocked . | . . . Overload Shots 4 | . . 4 Effects 1 | . . 1 Heat Surge 1 | . . 1 Overflow Damage 8 | . 8 . Projectiles . | . . . Explosions . | . . . Melee 8 | . 8 . Knockbacks . | . . . Impact . | . . . Kinetic . | . . . Secondary . | . . . Self-Inflicted Damage 42 | . . 42 Shots 1 | . . 1 Rammed . | . . . Targets Rammed . | . . . Kicked . | . . . Crushed . | . . . Highest Temperature 321 | 60 321 304 Average Temperature 98 | 26 115 112 Received Heat Transfer 414 | . 306 108 Effects 1 | . . 1 Damage (minor) 1 | . . 1 Siege Activations . | . . . Robots Corrupted . | . . . Combat Hostiles . | . . . Parts Fried . | . . . Impact Corruptions . | . . . Robots Melted . | . . . Combat Hostiles . | . . . Parts Melted 2 | . 2 . Heat Transferred 2446 | 370 999 1077 Parts Sabotaged . | . . . Parts Stolen . | . . . Parts Stripped . | . . . Power Chain Reactions . | . . . Alert | -11 -10 -10 ------- Run | Yrd Mat Sub Peak Influence 284 | 25 284 . Initial 16 | . 16 . Average 108 | 13 135 . Maximum Alert Level 1 | . 1 . Low Security (%) 77 | 100 70 . Level 1 22 | . 29 . Level 2 . | . . . Level 3 . | . . . Level 4 . | . . . Level 5 . | . . . High Security . | . . . Max Security . | . . . Squads Dispatched 1 | . 1 . Investigation . | . . . Extermination . | . . . Reinforcement 1 | . 1 . Assault . | . . . Garrison . | . . . Intercept . | . . . Searches Triggered . | . . . Construction Impeded . | . . . Haulers Reinforced . | . . . Active Scanning Responses . | . . . Cargo Convoy Interrupts . | . . . Stealth | -11 -10 -10 --------- Run | Yrd Mat Sub Distress Signals 2 | . 2 . Communications Jammed . | . . . Distress Signals . | . . . Times Spotted 25 | . 13 12 Peak Tracking Total 6 | . 6 3 Tactical Retreats 1 | . 1 . Traps | -11 -10 -10 ------- Run | Yrd Mat Sub Traps Triggered 3 | . . 3 Indirectly . | . . . Trap Hack Attempts . | . . . Triggered . | . . . Disarmed . | . . . Reprogrammed . | . . . Reused . | . . . Traps Extracted . | . . . Installed . | . . . Triggered . | . . . Machines | -11 -10 -10 ---------- Run | Yrd Mat Sub Machines Disabled . | . . . Max in Single Turn . | . . . Machines Repaired . | . . . Machines Dismantled . | . . . Machines Sabotaged . | . . . Overloaded Fab Kills . | . . . Hacking | -11 -10 -10 --------- Run | Yrd Mat Sub Machines Accessed 2 | . 2 . Terminals 1 | . 1 . Fabricators . | . . . Repair Stations . | . . . Recycling Units 1 | . 1 . Scanalyzers . | . . . Garrison Access . | . . . Total Hacks 3 | . 3 . Successful 2 | . 2 . Failed 1 | . 1 . Catastrophic . | . . . Database Lockouts . | . . . Manual 1 | . 1 . Terminals 2 | . 2 . Fabricators . | . . . Repair Stations . | . . . Recycling Units 1 | . 1 . Scanalyzers . | . . . Garrison Access . | . . . Terminal Hacks 1 | . 1 . Robot Analysis 1 | . 1 . Fabricator Hacks . | . . . Repair Station Hacks . | . . . Recycling Unit Hacks 1 | . 1 . Retrieve Components 1 | . 1 . Scanalyzer . | . . . Garrison Access Hacks . | . . . Unauthorized Hacks . | . . . Terminals . | . . . Fabricators . | . . . Repair Stations . | . . . Recycling Units . | . . . Scanalyzers . | . . . Garrison Access . | . . . Data Cores Recovered . | . . . Used . | . . . Hacking Detections 1 | . 1 . Full Trace Events . | . . . Feedback Events . | . . . Feedback Blocked . | . . . Robot Schematics Acquired . | . . . Robots Built . | . . . Authchips . | . . . Time . | . . . Total Robot Build Rating . | . . . Part Schematics Acquired . | . . . Parts Built . | . . . Authchips . | . . . Time . | . . . Total Part Build Rating . | . . . Parts Repaired . | . . . Time . | . . . Parts Recycled . | . . . Recycled Matter . | . . . Retrieved Matter . | . . . Retrieved Components 9 | . 9 . Parts Scanalyzed . | . . . Part Schematics Acquired . | . . . Parts Damaged . | . . . Bothacking | -11 -10 -10 ------------ Run | Yrd Mat Sub Used RIF Installer . | . . . Robots Hacked . | . . . Non-combat . | . . . Combat . | . . . Robot Hacks Applied . | . . . Relay Couplers Released . | . . . Fabnet Peak Effective % . | . . . Robots Rewired . | . . . Allies Hacked . | . . . Hacks Repelled . | . . . Allies | -11 -10 -10 -------- Run | Yrd Mat Sub Total Allies . | . . . Largest Group . | . . . Highest-Rated Group . | . . . Highest-Rated Ally . | . . . Total Orders . | . . . Ally Attacks . | . . . Total Damage . | . . . Kills . | . . . Allies Corrupted . | . . . Allies Melted . | . . . Intel | -11 -10 -10 ------- Run | Yrd Mat Sub Robot Analysis Total 1 | . 1 . Derelict Logs Recovered 2 | . . 2 Drone Launches . | . . . Drone Recoveries . | . . . Exploration | -11 -10 -10 ------------- Run | Yrd Mat Sub Turns Passed 1802 | 162 552 1088 Spaces Moved 972 | 114 281 577 Core 5 | 5 . . Treads 708 | . 131 577 Legs . | . . . Wheels 259 | 109 150 . Hover . | . . . Flight . | . . . Fastest Speed 50 | 50 90 160 Average Speed 142 | 91 126 160 Slowest Speed 240 | 200 240 160 Overloaded Moves . | . . . Propulsion Burnouts . | . . . Robots Hopped . | . . . Cave-ins Triggered . | . . . Exploration Rate (%) 43 | 6 54 69 Regions Visited 2 Branch Regions 1 Pre-discovered Areas . | . . . Known Exits Taken . | . . . Unknown Exits Taken 2 | 1 1 . Scrap Searched 1 | . . 1 Spaces Dug 23 | . 3 20 Terrain Destroyed 136 | . 3 133 Melee 3 | . 3 . Projectile . | . . . AOE 133 | . . 133 Terrain Rammed . | . . . Walls Destroyed . | . . . Machines Disabled . | . . . Actions | -11 -10 -10 --------- Run | Yrd Mat Sub Total 1208 | 144 393 671 Wait 27 | . 21 6 Move 970 | 113 280 577 Hop . | . . . Pick Up 38 | 9 17 12 Fast Attach 9 | 7 2 . Attach 10 | . 2 8 Detach . | . . . Swap 18 | 1 8 9 Drop 20 | 1 11 8 Fire 101 | 13 43 45 Melee 15 | . 9 6 Ram . | . . . Kick . | . . . Crush . | . . . Escape Stasis . | . . . Rewire . | . . . Trap . | . . . Miscellaneous . | . . . Route ------- -11/Scrapyard -10/Materials (discovered 4 exits: [*Mat] / [*Min x2] / [*Sub]) -10/Subcaves (discovered 1 exit: [*Mat]) History --------- Turn | Location | Event 21 | -11/Scrapyard | Discovered new exit (range 14) 163 | -11/Scrapyard | Entered Materials 313 | -10/Materials | Build established: Mutant 379 | -10/Materials | Discovered new exit (range 6) 386 | -10/Materials | Discovered new exit (range 16) 448 | -10/Materials | Discovered new exit (range 10) 711 | -10/Materials | Discovered new exit (range 3) 715 | -10/Materials | Entered Subcaves 759 | -10/Subcaves | Core integrity fell below 50% 901 | -10/Subcaves | Learned 2 Materials zone layouts 913 | -10/Subcaves | Shifting Twisted Machinery released Mak. Laser 914 | -10/Subcaves | Shifting Twisted Machinery released Sub. Power Source 949 | -10/Subcaves | Learned Materials security intel 981 | -10/Subcaves | A swath of the cavern ceiling suddenly collapsed 1216 | -10/Subcaves | Ambushed by Subdweller buried in earth 1477 | -10/Subcaves | Discovered new exit (range 16) 1704 | -10/Subcaves | Core integrity fell below 20% 1803 | -10/Subcaves | Destroyed by Piercing Trap Last Messages --------------- 01254_ BG-7G3(R) destroyed. 01271_ Acquired Sub. Shrapnel Launcher. 01477_ EXIT=FOUND 01485_ Acquired Mak. Leg. 01553_ Acquired 12 matter. 01576_ Acquired 6 matter. 01635_ VL-FQG(u) tweaks Twisted Machinery. 01661_ VL-FQG(u) builds Twisted Machinery. 01703_ Triggered Piercing Trap. 01703_ Spikes shoot up from the floor. 01703_ Critical hit (Impale). 01703_ Ion Engine destroyed. 01703_ Critical hit (Impale). 01703_ Imp. Treads destroyed. 01783_ Triggered Shrapnel Trap. 01783_ An expanding cloud of shrapnel blasts out in all directions. 01803_ Triggered Piercing Trap. 01803_ Spikes shoot up from the floor. 01803_ Critical hit (Impale). Map ----- +----------------------------------------------------+ | "" # ????????????????????????????????????? | | " ????????????????????????????????????? | | " "### ????##?????????????????????????????? | | """##?? # ## ?? #?????????????????????????????? | | " "#???## ##?##? #?????????????????????????????? | | """#??## ## # #??????????????????????????????? | | ""##??# ????????????????????????????????? | | "####?# #???????????????????????????????????? | | ## ### ##??????????????????????????????????? | | "" ##?????????????????????????????????? | | " ## ##????????????????????????????????? | | ## # ### #????????????????????????????????? | | ##########?# #????????????????????????????????? | | ???????????# ####?????????????????????????????? | | ??????????## ""##????????????????????????????? | | ???????#### "#????????????????????????????? | | ??????## ^ "#????????????????????????????? | | ????### ^ "#?????????????????????????????? | | ????# ^ ## "#?????????????????????????????? | | ????# ## "#?????????????????????????????? | | ##??# ## ##????????????????????????????? | | ##?# ## ## ####?????????????????????????? | | ####?# ### ## ##????????????????????????? | | ##?## ### ##???????????????????????? | | ### #?## ### ## #????????? | | ## #??## @ " #????????????? | | # ### ^ ####???### #?????????????? | | # ## #????????######## #####?????????????? | | # #????????????????######?????????????????? | | ## #???????????????????????????????????????? | | ?## #???????????????????????????????????????? | | ??# #???????????????????????????????????????? | | ??#^ #???????????????????????????????????????? | | ??### ####???????????????????????????????????????? | | ????###??????????????????????????????????????????? | | ?????????????????????????????????????????????????? | | ?????????????????????????????????????????????????? | | ?????????????????????????????????????????????????? | | ?????????????????????????????????????????????????? | | ?????????????????????????????????????????????????? | | ?????????????????????????????????????????????????? | | ?????????????????????????????????????????????????? | | ?????????????????????????????????????????????????? | | ???????????????####??????????????????????????????? | | ??????????????## ####???????????????????????????? | | ??????????????# "###?????????????????????????? | | ?????????????##" "" ##????????????????????????? | | ????????????## """ "" "#????????????????????????? | | ????????????# """" #????????????????????????? | | ???????????## & "" #????????????????????????? | +----------------------------------------------------+ Best States ------------- Heat Dissipation 25 Energy Generation 10 Energy Capacity 250 Matter Stores 300 Matter Capacity 300 Sight Range 16 Terrain Scan Range 16 Terrain Scan Density 10 Armor Coverage 225 Evasion (%) 42 Recoil Reduction 2 Item Schematics ----------------- None Robot Schematics ------------------ None Fabricated ------------ Nothing Alien Tech Used ----------------- None Achievements -------------- None Challenges ------------ None Game ------ Seed TrapMatterCompactor Manual? 0 Play Time 00:17:36 Cumulative 62.8 hours Start 2024.04.15 @ 21:56:58 End 2024.04.15 @ 23:25:35 Sessions 2 Manual Loads 0 Difficulty Rogue Special Mode None Game No. 75 Rogue 75 Adventurer 0 Explorer 0 Win Type - Total 0 Types 0/0/0/0/0/0/0/0/0 Lore% 18 Gallery% 41 Achievement% 29 Wizard Run 0 Options --------- Layout 1 ASCII 0 Keyboard 1 Movement Vi Keybinds 0 Fullscreen 1 Font 24/Smallcaps Map View 50x35 Zoom Use 0% Tactical HUD 1 Map Filters NONE Filters NONE Steam 1 RUN: df6051d3-b68c-4f89-8168-1411c53d37cf